Cogmind - Beta 11.1 @@@ ROGUE MODE // 2022.04.25 @ 11:06:43 Player: NoNeedToExplain Result: Destroyed by H-88 Terminator with Heavy Machine Gun Performance ------------- Evolutions (9) 4500 Regions Visited (20) 4000 Robots Destroyed (250) 1250 Value Destroyed (13187) 13187 Prototype IDs (18) 360 Alien Tech Used (0) 0 Bonus (7138) 7138 TOTAL SCORE: 30435 Bonus ------- High Alert Combat Kills 1144 Follower Combat Kills 2508 Entered Garrisons 1200 Used RIF Installer 3000 Friendly Fire -714 Cogmind --------- Core Integrity 0/1600 Matter 294/300 Energy 99/100 System Corruption 16% Temperature Cool (0) Movement Core (50) Location -1/Access Parts ------- > --- POWER (1) -------- (None) > --- PROPULSION (4) --- (None) > --- UTILITY (18) ----- Advanced Signal Interpreter Advanced Terrain Scan Processor Advanced Target Analyzer Hacking Suite Relay Coupler [Swarmer] (16) Relay Coupler [Specialist] (30) Relay Coupler [Hunter] (1) > --- WEAPON (2) ------- (None) > --- INVENTORY (5) ---- Energy Well (350) HERF Cannon Peak State ------------ > --- POWER ------------ Antimatter Reactor > --- PROPULSION ------- Improved Heavy Treads Biometal Heavy Treads > --- UTILITY ---------- Advanced Heat Sink Huge Storage Unit Experimental Sensor Array Advanced Signal Interpreter Advanced Terrain Scanner Advanced Terrain Scan Processor Advanced Target Analyzer Graphene Brace Hacking Suite Advanced Hacking Suite Relay Coupler [Swarmer] Relay Coupler [Grunt] Relay Coupler [Sentry] Relay Coupler [Hunter] Relay Coupler [Heavy] Advanced Drone Bay > --- WEAPON ----------- Helical Railgun Helical Railgun > --- INVENTORY -------- Light Quantum Reactor Heavy Siege Treads Biometal Medium Treads Armored Huge Wheel Advanced Heat Sink Energy Well Experimental Matter Compressor Relay Coupler [Cutter] Relay Coupler [Brawler] Relay Coupler [Sentry] Relay Coupler [Demolisher] Relay Coupler [Specialist] Gamma Rifle Long-range Proton Cannon HERF Cannon Mass Driver Enhanced Gauss Cannon Micro-nuke Launcher Micro-nuke Launcher Improved Remote Datajack Improved Remote Datajack Advanced Remote Datajack Spear [Rating: 156] Favorites ----------- Power Antimatter Reactor Engine Deuterium Engine Power Core Neutrino Core Reactor Antimatter Reactor Propulsion Light Treads Treads Light Treads Leg Centrium Leg Wheel Armored Huge Wheel Utility Huge Storage Unit Device Structural Scanner Storage Huge Storage Unit Processor Advanced Terrain Scan Processor Hackware Hacking Suite Protection Improved Light Armor Plating Weapon Advanced Assault Cannon Energy Gun Improved EM Shotgun Energy Cannon Long-range Proton Cannon Ballistic Gun Heavy Assault Rifle Ballistic Cannon Advanced Assault Cannon Launcher Mini Grenade Launcher Special Weapon Remote Datajack Impact Weapon Hammer Slashing Weapon Carbide Saw Piercing Weapon Spear Special Melee Weapon Datajack Build | -11 -10 -10 -9 -9 -8 -8 -8 -7 -7 -6 -6 -6 -6 -5 -5 -4 -4 -3 -2 -1 ------- Run | Scr Mat Min Mat Min Mat Gar Mat Fac Gar Fac Gar Fac Gar Fac Gar Fac Gar Res Res Acc Slots Evolved 18 | . . . 2 . 2 . . 2 . 2 . . . 2 . 2 . 2 2 2 Power . | . . . . . . . . . . . . . . . . . . . . . Propulsion 2 | . . . 1 . . . . . . . . . . . . 1 . . . . Utility 16 | . . . 1 . 2 . . 2 . 2 . . . 2 . 1 . 2 2 2 Weapon . | . . . . . . . . . . . . . . . . . . . . . Parts Attached 373 | 6 10 8 24 5 39 16 9 12 18 16 25 19 35 15 23 33 18 4 14 24 Power 23 | 1 1 2 2 . 2 2 1 1 . 1 2 1 1 1 . 1 . . 2 2 Engine 13 | 1 1 2 2 . 2 1 . 1 . 1 . 1 1 . . . . . . . Core 4 | . . . . . . 1 1 . . . 1 . . 1 . . . . . . Reactor 6 | . . . . . . . . . . . 1 . . . . 1 . . 2 2 Propulsion 45 | 2 2 2 9 2 5 2 1 1 . 2 2 . 2 2 . 2 1 1 2 5 Treads 36 | 2 2 2 9 1 4 2 . 1 . 1 1 . 2 1 . 1 1 1 2 3 Leg 1 | . . . . . . . . . . . . . . . . . . . . 1 Wheel 8 | . . . . 1 1 . 1 . . 1 1 . . 1 . 1 . . . 1 Hover . | . . . . . . . . . . . . . . . . . . . . . Flight . | . . . . . . . . . . . . . . . . . . . . . Utility 140 | 1 2 3 2 1 13 3 6 4 11 6 11 8 14 7 15 10 8 2 8 5 Device 41 | . 1 2 1 . 5 1 . 2 2 1 4 3 5 2 3 2 3 . 3 1 Storage 6 | 1 1 1 . . . . . . . . . 1 . . 1 1 . . . . Processor 4 | . . . . . . . . 1 . . 1 . . . . . . . 1 1 Hackware 47 | . . . . . . . 5 1 6 2 2 4 5 3 6 4 1 2 3 3 Protection 42 | . . . 1 1 8 2 1 . 3 3 4 . 4 2 5 3 4 . 1 . Artifact . | . . . . . . . . . . . . . . . . . . . . . Weapon 165 | 2 5 1 11 2 19 9 1 6 7 7 10 10 18 5 8 20 9 1 2 12 Energy Gun 14 | 1 1 . 2 . 2 . . . . . . 3 5 . . . . . . . Energy Cannon 19 | . . . . . 1 3 . 1 2 1 1 . . 1 5 1 2 . . 1 Ballistic Gun 25 | 1 1 1 6 1 6 . . . . . 1 1 1 . . . . . 2 4 Ballistic Cannon 31 | . 1 . . . 5 3 . 2 1 1 4 1 3 2 . 6 2 . . . Launcher 33 | . . . 2 1 4 3 . . 1 1 2 1 3 . 2 5 3 . . 5 Special Weapon 29 | . . . . . . . 1 1 2 3 1 4 5 2 1 5 1 1 . 2 Impact Weapon 4 | . 2 . 1 . . . . . . 1 . . . . . . . . . . Slashing Weapon 1 | . . . . . . . . . . . . . 1 . . . . . . . Piercing Weapon 8 | . . . . . . . . 2 1 . 1 . . . . 3 1 . . . Special Melee Weapon 1 | . . . . . 1 . . . . . . . . . . . . . . . Unidentified Prototypes 9 | . . 1 3 . 1 . . . . 2 . . . . . 1 . . 1 . Corrupted Parts 5 | . . . . . . 1 . . . . . . 3 . . 1 . . . . System Corruption 11 | . . . . . . 4 . . . . . . 6 . . 1 . . . . Parts Lost 63 | . 1 1 . 2 10 6 . . . . 12 . 1 . 2 . 4 . 2 22 Power 6 | . . . . . 1 1 . . . . 2 . . . . . . . . 2 Propulsion 12 | . . . . 1 1 1 . . . . 1 . . . . . 1 . . 7 Utility 32 | . . . . 1 6 2 . . . . 5 . . . 2 . 3 . 2 11 Weapon 13 | . 1 1 . . 2 2 . . . . 4 . 1 . . . . . . 2 Highest Loss Streak 8 | . 1 1 . 2 4 2 . . . . 8 . 1 . 1 . 3 . 1 7 To Critical Strikes . | . . . . . . . . . . . . . . . . . . . . . Average Slot Usage (%) 91 | . 99 100 100 97 89 87 86 92 91 90 90 86 79 83 90 91 92 93 90 73 Engine 6 | . 14 14 11 11 9 9 . 3 7 6 1 2 6 2 . . . . . . Reactor 1 | . . . . . . . . . . . 3 . . . . 4 5 4 4 2 Treads 14 | . 28 28 33 27 9 8 9 7 7 6 5 6 6 5 5 10 10 9 5 6 Wheel 4 | . . . . 2 8 9 8 7 7 5 6 6 6 5 5 5 5 4 2 . Device 11 | . 13 14 12 11 15 16 15 14 3 5 12 13 4 10 8 8 10 19 18 14 Storage 8 | . 14 14 11 11 9 9 9 7 7 6 6 6 6 5 5 5 5 4 4 2 Processor 3 | . . . . . . . . 7 7 6 10 6 6 5 5 5 5 4 5 10 Hackware 12 | . . . . . . . 7 15 28 31 20 19 14 17 20 28 25 21 29 29 Protection 9 | . . . 10 11 20 17 10 7 4 6 5 6 12 12 18 11 13 14 8 1 Energy Gun 3 | . 8 . 9 11 2 . . . . . . 2 6 1 . . . . . . Energy Cannon 1 | . . . . . . 9 . 2 6 7 1 . . . 5 . 3 4 3 . Ballistic Gun 4 | . 13 14 10 10 9 . . . . . 3 1 . . . . . . . 4 Ballistic Cannon 3 | . 5 14 1 . 4 8 11 9 1 . 5 3 1 4 . 4 3 . . . Special Weapon 1 | . . . . . . . 6 1 4 4 1 3 2 3 4 3 1 3 3 . Naked Turns . | . . . . . . . . . . . . . . . . . . . . . Heaviest Build 149 | 12 51 91 99 100 110 111 107 109 111 129 127 117 133 145 149 144 145 127 127 131 Greatest Support 150 | 40 40 40 60 60 28 28 28 28 28 28 28 28 28 28 28 28 28 28 150 150 Greatest Overweight (x) 5 | . 1 2 1 3 5 3 3 3 3 4 4 4 4 5 5 5 5 4 4 . Average Overweight (x) 2 | . . 1 1 1 3 3 3 3 3 3 3 3 4 4 4 4 4 4 2 . Largest Inventory Capacity 25 | 8 20 25 25 25 25 25 25 25 25 25 25 25 25 25 25 25 25 25 25 25 Average Capacity 23 | 6 14 22 25 25 25 25 25 25 25 25 25 25 25 25 25 25 25 25 25 17 Most Carried 25 | 6 17 22 25 25 25 25 25 25 25 25 25 25 25 25 25 25 25 25 25 25 Average Carried 22 | 3 10 20 24 24 24 24 24 23 24 23 24 24 24 24 24 24 24 24 24 15 Final Capacity 25 | 8 20 25 25 25 25 25 25 25 25 25 25 25 25 25 25 25 25 25 25 5 Final Carried 25 | 6 17 22 25 25 21 25 24 25 25 25 25 25 25 25 25 25 25 25 25 2 Class Distribution -------------------- 31% | Mutant 28% | Bothacker-Mutant 21% | Botlord-Mutant 14% | Scavenger-Mutant Dominant Class ---------------- Mutant | -10/Materials Mutant | -10/Mines Scavenger-Mutant | -9/Materials Scavenger-Mutant | -9/Mines Mutant | -8/Materials Mutant | -8/Garrison Bothacker-Mutant | -8/Materials Commander-Skirmisher | -7/Factory Bothacker-Mutant | -7/Garrison Bothacker-Mutant | -6/Factory Bothacker-Mutant | -6/Garrison Bothacker-Mutant | -6/Factory Bothacker-Mutant | -6/Garrison Botlord-Mutant | -5/Factory Botlord-Mutant | -5/Garrison Botlord-Mutant | -4/Factory Botlord-Mutant | -4/Garrison Botlord-Mutant | -3/Research Botlord-Mutant | -2/Research Botlord-Skirmisher | -1/Access Resources | -11 -10 -10 -9 -9 -8 -8 -8 -7 -7 -6 -6 -6 -6 -5 -5 -4 -4 -3 -2 -1 ----------- Run | Scr Mat Min Mat Min Mat Gar Mat Fac Gar Fac Gar Fac Gar Fac Gar Fac Gar Res Res Acc Matter Collected 9587 | 179 332 370 545 117 770 372 189 253 566 252 584 328 444 421 554 948 1077 229 451 606 Remotely . | . . . . . . . . . . . . . . . . . . . . . Salvage Created 9097 | . 394 275 1309 206 1329 598 . 171 233 117 713 484 445 90 584 453 901 . 87 708 Parts 422 | . 23 21 85 18 67 30 . 5 8 7 16 16 15 1 18 32 35 . 1 24 Haulers Intercepted 10 | . 2 . 5 . 3 . . . . . . . . . . . . . . . Recyclers Shooed 10 | . 1 1 . . 1 . . 1 . . . 1 . . . 1 . . 2 2 Parts Field Recycled . | . . . . . . . . . . . . . . . . . . . . . Retrieved Matter . | . . . . . . . . . . . . . . . . . . . . . Parts Self-Destructed . | . . . . . . . . . . . . . . . . . . . . . Prevented . | . . . . . . . . . . . . . . . . . . . . . Kills | -11 -10 -10 -9 -9 -8 -8 -8 -7 -7 -6 -6 -6 -6 -5 -5 -4 -4 -3 -2 -1 ------- Run | Scr Mat Min Mat Min Mat Gar Mat Fac Gar Fac Gar Fac Gar Fac Gar Fac Gar Res Res Acc Combat Hostiles Destroyed 207 | . 14 8 28 9 26 18 . 1 8 2 12 8 10 1 10 13 20 . 1 18 Melee 1 | . . . . . . . . . 1 . . . . . . . . . . . Guns 63 | . 12 5 19 5 11 . . . . . 2 2 2 . . . . . . 5 Cannons 46 | . 2 3 3 . 5 7 . 1 4 1 7 1 1 . 2 2 7 . . . AOE 89 | . . . 6 4 8 11 . . 3 1 3 4 5 . 7 11 12 . 1 13 Classes Destroyed 18 | . 3 3 3 1 3 . . 1 . . 1 1 . . . 1 . . . 1 Worker 6 | . . 1 . . 1 . . . . . . 2 . . . 1 . . . 1 Builder 5 | . . . . . . . . . . . . 1 . . . 2 . . . 2 Tunneler 3 | . . . . 1 1 . . . . . . . . . . 1 . . . . Hauler 10 | . 2 . 5 . 3 . . . . . . . . . . . . . . . Recycler 8 | . . 2 . . 2 . . 2 . . . . . . . 2 . . . . Carrier 1 | . . . . . . . . . . . . . . . . . . . . 1 Operator 2 | . . . 1 . 1 . . . . . . . . . . . . . . . Watcher 6 | . . . 4 . 1 . . . . . . . . . . . 1 . . . Swarmer 64 | . 9 6 11 4 3 4 . . 4 . 3 . . . . 10 . . . 10 Grunt 91 | . 5 . 8 5 9 11 . . 3 1 6 6 9 . 9 . 12 . . 7 Brawler 1 | . . . . . 1 . . . . . . . . . . . . . . . Duelist 2 | . . . . . . . . . . . . . . . . 1 1 . . . Sentry 26 | . . . 9 . 9 3 . . . 1 3 . . 1 . . . . . . Demolisher 2 | . . 2 . . . . . . . . . . . . . . . . . . Specialist 2 | . . . . . 2 . . . . . . . . . . . . . . . Hunter 6 | . . . . . 2 . . . . . . 2 . . 1 . . . 1 . Programmer 11 | . . . . . . . . 1 1 . . . . . . 2 6 . . 1 Behemoth 4 | . . . . . . . . . . . 1 . 1 . 1 . 1 . . . Best Kill Streak 11 | . 4 4 4 4 5 7 . 1 3 2 5 5 4 1 7 7 9 . 1 11 Combat Bots Only 10 | . 4 3 3 4 3 7 . 1 3 2 5 3 4 1 7 5 9 . 1 10 Max Kills in Single Turn 6 | . 1 1 3 2 2 3 . 1 2 1 1 2 2 1 4 6 2 . 1 3 Gunslinging 1 | . . . . 1 . . . . . . . . . . . . . . . . Exploded 5 | . . . 3 2 2 3 . . 2 1 1 2 2 . 4 5 2 . 1 3 Melee 1 | . . . . . . . . . 1 . . . . . . . . . . . Uniques/NPCs Destroyed . | . . . . . . . . . . . . . . . . . . . . . Combat | -11 -10 -10 -9 -9 -8 -8 -8 -7 -7 -6 -6 -6 -6 -5 -5 -4 -4 -3 -2 -1 -------- Run | Scr Mat Min Mat Min Mat Gar Mat Fac Gar Fac Gar Fac Gar Fac Gar Fac Gar Res Res Acc Damage Taken 21072 | . 578 383 880 301 2759 804 39 86 385 490 2317 226 999 225 842 815 1646 58 497 6742 Core 3056 | . 72 70 51 34 421 85 . 6 33 52 259 . 21 . 48 25 261 . . 1618 Absorbed by Shields 904 | . . . . . . . . . . . . . . . 221 299 384 . . . Reduced by Siege Mode 23 | . . . . . . . . . . . . . . . . . . . . 23 Redirected to Shielding 317 | . . . . . 111 . . . . . 103 . . . . . 25 19 59 . Regen/Repaired (Parts) 569 | . . . . . 70 . 408 . . 87 . 4 . . . . . . . . Core Remaining (%) 75 | 100 . 43 . 78 . . 8 . 94 . . . 60 . 95 . 75 100 100 . Volleys Fired 713 | . 61 19 84 13 97 31 7 8 36 14 54 32 43 28 40 33 54 5 21 33 Largest 2 | . 2 2 2 2 2 2 1 2 2 2 2 2 2 2 2 2 2 1 2 2 Hottest 162 | . 70 55 79 68 100 112 5 96 128 130 118 120 120 114 162 138 138 7 81 81 Shots Fired 1129 | . 121 38 151 22 182 50 7 12 50 17 88 43 63 30 52 43 86 5 23 46 Gun 498 | . 111 19 142 18 105 . . . . . 11 21 39 . . . . . 6 26 Cannon 405 | . 10 19 5 . 67 40 . 11 32 8 59 4 10 9 37 22 69 . 2 1 Launcher 84 | . . . 4 4 10 10 . . 2 2 7 2 7 . 2 5 16 . . 13 Special 142 | . . . . . . . 7 1 16 7 11 16 7 21 13 16 1 5 15 6 Kinetic 528 | . 71 38 91 9 116 11 . 9 14 2 50 5 18 4 2 17 39 . 6 26 Thermal 145 | . 50 . 49 . . . . 2 18 6 20 . . . . . . . . . Explosive 75 | . . . 4 4 10 10 . . 2 . . 2 7 . 2 5 16 . . 13 Electromagnetic 239 | . . . 7 9 56 29 . . . 2 7 20 31 5 35 5 30 . 2 1 Robot Hit Streak 19 | . 11 7 16 9 17 12 5 4 8 6 19 14 7 4 15 17 11 4 10 11 Robot Miss Streak 10 | . 3 2 3 1 6 2 1 2 6 1 6 3 4 3 6 10 6 1 4 9 Penetration Max . | . . . . . . . . . . . . . . . . . . . . . Secondary Targets 1 | . . . . 1 . . . . . . . . . . . . . . . . Max Gunslinging Chain 1 | . . . . 1 . . . . . . . . . . . . . . . . Shots Hit Robots 763 | . 78 25 97 18 131 29 6 8 28 12 75 30 37 18 38 27 64 4 17 21 Core Hits 475 | . 21 10 51 17 66 36 . 2 10 7 35 15 19 . 40 42 48 . 4 52 Critical Kills . | . . . . . . . . . . . . . . . . . . . . . Critical Parts Destroyed 2 | . . . 2 . . . . . . . . . . . . . . . . . Critical Strikes 22 | . 2 . 5 . 2 2 . 1 . . 1 . 2 2 . 2 3 . . . Burn 5 | . 2 . 3 . . . . . . . . . . . . . . . . . Destroy 1 | . . . 1 . . . . . . . . . . . . . . . . . Blast 11 | . . . . . 2 2 . . . . . . 1 2 . 1 3 . . . Corrupt 1 | . . . . . . . . . . . . . 1 . . . . . . . Smash 1 | . . . 1 . . . . . . . . . . . . . . . . . Impale 3 | . . . . . . . . 1 . . 1 . . . . 1 . . . . Melee Attacks 49 | . 6 . 4 . 1 . . 7 2 . 11 . . . . 7 11 . . . Impact 10 | . 6 . 4 . . . . . . . . . . . . . . . . . Slashing . | . . . . . . . . . . . . . . . . . . . . . Piercing 38 | . . . . . . . . 7 2 . 11 . . . . 7 11 . . . Sneak Attacks 4 | . . . . . 1 . . 2 . . . . . . . 1 . . . . Combat Hostiles 1 | . . . . . 1 . . . . . . . . . . . . . . . Follow-up Attacks . | . . . . . . . . . . . . . . . . . . . . . Damage Inflicted 29145 | . 1032 399 1990 651 3626 2351 . 285 617 319 2261 1000 1647 241 1701 2008 4984 . 473 3560 Guns 5700 | . 917 187 1457 255 1238 . . . . . 177 425 478 . . . . . 155 411 Cannons 6926 | . 115 206 76 . 1276 588 . 137 399 121 1292 55 137 240 583 266 1362 . 73 . Explosions 15226 | . . . 361 395 1112 1763 . . 189 198 326 516 1032 . 1118 1655 3239 . 241 3081 Melee 1151 | . . . 47 . . . . 148 29 . 466 . . . . 78 383 . . . Ramming 142 | . . 6 49 1 . . . . . . . 4 . 1 . 9 . . 4 68 Kinetic 7423 | . 647 393 779 104 1867 233 . 137 136 66 1011 55 218 124 . 235 852 . 155 411 Thermal 2480 | . 385 . 707 107 . . . . 263 55 458 211 53 . . . . . 241 . Explosive 13847 | . . . 316 288 1112 1763 . . 189 . . 305 979 . 1118 1655 3239 . . 2883 Electromagnetic 4102 | . . . 92 151 647 355 . . . 198 326 425 397 116 583 31 510 . 73 198 Impact 47 | . . . 47 . . . . . . . . . . . . . . . . . Slashing . | . . . . . . . . . . . . . . . . . . . . . Piercing 1104 | . . . . . . . . 148 29 . 466 . . . . 78 383 . . . Highest Corruption 16 | . . . . . . 4 4 1 1 . . . 6 . . 4 6 . . 16 Average Corruption 4 | . . . . . . 4 4 1 1 . . . 5 . . 3 5 . . 7 Corruption Purged 1 | . . . . . . . . . 1 . . . . . . . . . . . Corruption Blocked . | . . . . . . . . . . . . . . . . . . . . . Effects 64 | . . . . . . . 4 . 3 . . . 1 . . 7 33 . . 16 Message Errors 15 | . . . . . . . 1 . 1 . . . . . . 1 8 . . 4 Matter Fused 11 | . . . . . . . . . 1 . . . 1 . . 2 5 . . 2 Heat Flow Errors 9 | . . . . . . . . . . . . . . . . 1 6 . . 2 Energy Discharges 9 | . . . . . . . 1 . 1 . . . . . . 1 5 . . 1 Parts Rejected 1 | . . . . . . . . . . . . . . . . . 1 . . . Data Loss (minor) 8 | . . . . . . . 1 . . . . . . . . 1 4 . . 2 Data Loss (major) 4 | . . . . . . . 1 . . . . . . . . 1 1 . . 1 Misfires 1 | . . . . . . . . . . . . . . . . . 1 . . . Alerts 1 | . . . . . . . . . . . . . . . . . . . . 1 Misdirections 3 | . . . . . . . . . . . . . . . . . . . . 3 Weapon Failures 2 | . . . . . . . . . . . . . . . . . 2 . . . Overload Shots . | . . . . . . . . . . . . . . . . . . . . . Overflow Damage 713 | . . 9 42 6 38 26 . 85 3 . 53 . 48 10 . 184 91 . 12 106 Projectiles 129 | . . 9 . . 1 . . 38 3 . . . . 10 . 58 10 . . . Explosions 383 | . . . 15 6 37 26 . . . . . . 48 . . 52 81 . 12 106 Melee 201 | . . . 27 . . . . 47 . . 53 . . . . 74 . . . . Knockbacks 43 | . 2 2 1 . 12 . . 2 . . 5 1 1 1 . 3 13 . . . Impact 1 | . . . 1 . . . . . . . . . . . . . . . . . Kinetic 40 | . 2 2 . . 11 . . 2 . . 5 1 1 1 . 3 12 . . . Secondary 2 | . . . . . 1 . . . . . . . . . . . 1 . . . Self-Inflicted Damage 795 | . . . 7 79 30 117 . . 30 . 33 . 145 . 104 . 131 . . 119 Shots 29 | . . . 1 3 1 4 . . 1 . 4 . 3 . 6 . 4 . . 2 Rammed 26 | . 1 . 4 . . . . . . . . . . 1 . 1 . . 1 18 Targets Rammed 29 | . 1 1 4 1 . . . . . . . 1 . 1 . 1 . . 1 18 Kicked . | . . . . . . . . . . . . . . . . . . . . . Crushed 3 | . . 1 . 1 . . . . . . . 1 . . . . . . . . Highest Temperature 258 | . 69 . 189 54 255 30 . 68 231 114 156 7 258 6 138 204 227 . . 144 Average Temperature 55 | . 22 . 42 16 94 14 . 24 103 39 38 7 88 4 54 73 67 . . 77 Received Heat Transfer 3798 | . 198 . 291 90 738 360 9 12 117 139 636 99 297 . 261 50 132 9 27 333 Effects 5 | . . . . . 1 . . . 2 . . . 2 . . . . . . . Energy Bleed 1 | . . . . . 1 . . . . . . . . . . . . . . . Interference 4 | . . . . . . . . . 2 . . . 2 . . . . . . . Siege Activations 3 | . . . . . . . . . . . . . . . . . . . 1 2 Total Turns 36 | . . . . . . . . . . . . . . . . . . . 12 24 Longest Duration 13 | . . . . . . . . . . . . . . . . . . . 12 13 Robots Corrupted 8 | . . . . . 2 . . . . . . 1 2 1 1 . 1 . . . Combat Hostiles 8 | . . . . . 2 . . . . . . 1 2 1 1 . 1 . . . Parts Fried 17 | . . . 1 . 3 1 . . . . 1 4 . 1 5 . 1 . . . Impact Corruptions 1 | . . . 1 . . . . . . . . . . . . . . . . . Robots Melted . | . . . . . . . . . . . . . . . . . . . . . Combat Hostiles . | . . . . . . . . . . . . . . . . . . . . . Parts Melted 6 | . . . 6 . . . . . . . . . . . . . . . . . Heat Transferred 4589 | . 1295 . 1678 150 . . . . 475 74 592 150 25 . . . . . 150 . Parts Sabotaged . | . . . . . . . . . . . . . . . . . . . . . Parts Stolen . | . . . . . . . . . . . . . . . . . . . . . Parts Stripped . | . . . . . . . . . . . . . . . . . . . . . Power Chain Reactions 6 | . . . 1 2 . . . . . . . 1 1 . . . . . 1 . Missiles Intercepted . | . . . . . . . . . . . . . . . . . . . . . Alert | -11 -10 -10 -9 -9 -8 -8 -8 -7 -7 -6 -6 -6 -6 -5 -5 -4 -4 -3 -2 -1 ------- Run | Scr Mat Min Mat Min Mat Gar Mat Fac Gar Fac Gar Fac Gar Fac Gar Fac Gar Res Res Acc Peak Influence 1229 | . 318 154 390 206 305 775 483 217 546 336 389 395 617 420 685 732 1229 702 394 992 Initial 690 | . . 7 . 4 21 81 377 128 31 286 130 203 261 323 259 359 381 690 394 110 Average 315 | . 93 43 128 116 165 546 391 128 375 199 266 267 445 330 526 488 993 693 288 622 Maximum Alert Level 4 | . 1 . 1 1 1 3 2 1 2 1 1 1 2 2 2 3 4 3 1 3 Low Security (%) 40 | 100 81 100 68 84 59 5 . 92 22 51 34 12 . . . . . . 40 12 Level 1 31 | . 18 . 31 15 40 29 61 7 18 48 65 87 43 89 19 22 2 . 59 8 Level 2 19 | . . . . . . 24 38 . 59 . . . 56 10 80 67 17 68 . 22 Level 3 6 | . . . . . . 39 . . . . . . . . . 10 33 31 . 55 Level 4 2 | . . . . . . . . . . . . . . . . . 45 . . . Level 5 . | . . . . . . . . . . . . . . . . . . . . . High Security . | . . . . . . . . . . . . . . . . . . . . . Max Security . | . . . . . . . . . . . . . . . . . . . . . Squads Dispatched 32 | . 4 1 2 1 3 . . 1 . 2 . 2 . 2 . 4 . . 1 9 Investigation 6 | . 3 . . 1 . . . . . . . . . . . . . . . 2 Extermination 8 | . . . . . . . . 1 . . . 1 . 1 . 3 . . 1 1 Reinforcement 13 | . 1 . 2 . 3 . . . . 1 . 1 . 1 . . . . . 4 Assault 4 | . . 1 . . . . . . . . . . . . . 1 . . . 2 Garrison 1 | . . . . . . . . . . 1 . . . . . . . . . . Intercept . | . . . . . . . . . . . . . . . . . . . . . Searches Triggered . | . . . . . . . . . . . . . . . . . . . . . Construction Impeded 1 | . . . . . . . . . . . . . . . . . . . . 1 Haulers Reinforced 2 | . . . . . . . . . . . . . . 1 . . . . . 1 Active Scanning Responses . | . . . . . . . . . . . . . . . . . . . . . Cargo Convoy Interrupts . | . . . . . . . . . . . . . . . . . . . . . Stealth | -11 -10 -10 -9 -9 -8 -8 -8 -7 -7 -6 -6 -6 -6 -5 -5 -4 -4 -3 -2 -1 --------- Run | Scr Mat Min Mat Min Mat Gar Mat Fac Gar Fac Gar Fac Gar Fac Gar Fac Gar Res Res Acc Distress Signals 13 | . 1 . 2 . 3 . 3 1 . . . . . . . 2 . . . 1 Communications Jammed 48 | . . . . . . . . . . . . . . 47 . . . . . 1 Distress Signals 48 | . . . . . . . . . . . . . . 47 . . . . . 1 Times Spotted 473 | . 27 9 44 9 41 20 11 5 35 18 23 14 23 16 24 41 22 2 14 75 Peak Tracking Total 17 | . 4 3 4 4 6 4 4 2 5 5 11 4 5 4 9 7 7 1 3 17 Tactical Retreats 26 | . . 1 1 . 2 1 . . 1 1 . . 1 . 3 1 3 . . 11 Traps | -11 -10 -10 -9 -9 -8 -8 -8 -7 -7 -6 -6 -6 -6 -5 -5 -4 -4 -3 -2 -1 ------- Run | Scr Mat Min Mat Min Mat Gar Mat Fac Gar Fac Gar Fac Gar Fac Gar Fac Gar Res Res Acc Traps Triggered 39 | . 1 . . . 1 4 . . 7 1 2 . 9 . 4 . 9 . . 1 Indirectly . | . . . . . . . . . . . . . . . . . . . . . Trap Hack Attempts . | . . . . . . . . . . . . . . . . . . . . . Triggered . | . . . . . . . . . . . . . . . . . . . . . Disarmed . | . . . . . . . . . . . . . . . . . . . . . Reprogrammed . | . . . . . . . . . . . . . . . . . . . . . Reused . | . . . . . . . . . . . . . . . . . . . . . Traps Extracted . | . . . . . . . . . . . . . . . . . . . . . Installed . | . . . . . . . . . . . . . . . . . . . . . Triggered . | . . . . . . . . . . . . . . . . . . . . . Machines | -11 -10 -10 -9 -9 -8 -8 -8 -7 -7 -6 -6 -6 -6 -5 -5 -4 -4 -3 -2 -1 ---------- Run | Scr Mat Min Mat Min Mat Gar Mat Fac Gar Fac Gar Fac Gar Fac Gar Fac Gar Res Res Acc Machines Disabled 56 | . 1 . 4 4 3 2 . 1 3 1 3 2 3 . 5 12 8 . . 4 Max in Single Turn 6 | . 1 . 1 2 1 1 . 1 1 1 1 1 1 . 1 6 1 . . 1 Garrison Relay 18 | . . . . . . 2 . . 3 . 3 . 3 . 3 . 4 . . . Energy Cycler 1 | . . . . . . . . . . . . . . . . . . . . 1 Machines Sabotaged . | . . . . . . . . . . . . . . . . . . . . . Garrisons Compromised . | . . . . . . . . . . . . . . . . . . . . . Overloaded Fab Kills . | . . . . . . . . . . . . . . . . . . . . . Hacking | -11 -10 -10 -9 -9 -8 -8 -8 -7 -7 -6 -6 -6 -6 -5 -5 -4 -4 -3 -2 -1 --------- Run | Scr Mat Min Mat Min Mat Gar Mat Fac Gar Fac Gar Fac Gar Fac Gar Fac Gar Res Res Acc Machines Accessed 61 | . 8 . 11 1 11 . 2 3 . 5 . 2 . 5 . 8 . . 1 4 Terminals 44 | . 6 . 11 . 8 . 1 2 . 3 . 1 . 1 . 6 . . 1 4 Fabricators . | . . . . . . . . . . . . . . . . . . . . . Repair Stations 5 | . . . . . 1 . 1 . . 1 . . . 2 . . . . . . Recycling Units 5 | . 2 . . . 1 . . . . . . . . 1 . 1 . . . . Scanalyzers . | . . . . . . . . . . . . . . . . . . . . . Garrison Access 6 | . . . . . 1 . . 1 . 1 . 1 . 1 . 1 . . . . Total Hacks 146 | . 25 . 28 1 27 . 6 7 . 9 . 3 . 14 . 17 . . 2 7 Successful 70 | . 13 . 12 1 10 . 4 4 . 7 . 1 . 6 . 10 . . . 2 Failed 76 | . 12 . 16 . 17 . 2 3 . 2 . 2 . 8 . 7 . . 2 5 Catastrophic 13 | . . . 3 . 2 . 1 1 . 1 . . . 1 . 1 . . . 3 Database Lockouts . | . . . . . . . . . . . . . . . . . . . . . Manual 91 | . 21 . 27 . 12 . 2 6 . 3 . 2 . 4 . 12 . . 1 1 Terminals 108 | . 21 . 28 . 19 . 2 6 . 6 . 2 . 2 . 13 . . 2 7 Fabricators . | . . . . . . . . . . . . . . . . . . . . . Repair Stations 14 | . . . . . 2 . 4 . . 2 . . . 6 . . . . . . Recycling Units 16 | . 4 . . . 4 . . . . . . . . 5 . 3 . . . . Scanalyzers . | . . . . . . . . . . . . . . . . . . . . . Garrison Access 7 | . . . . . 2 . . 1 . 1 . 1 . 1 . 1 . . . . Terminal Hacks 35 | . 8 . 9 1 5 . . 1 . 4 . . . . . 5 . . . 2 Record 1 | . . . . . . . . . . . . . . . . 1 . . . . Robot Analysis 7 | . 3 . 2 . . . . . . 2 . . . . . . . . . . Prototype ID Bank 1 | . 1 . . . . . . . . . . . . . . . . . . . Open Door 1 | . . . . 1 . . . . . . . . . . . . . . . . Branch Access Points 2 | . . . . . 1 . . . . . . . . . . . . . . 1 Terminal Index 7 | . 1 . 1 . 1 . . 1 . 1 . . . . . 1 . . . 1 Unreport Threat 12 | . 1 . 4 . 3 . . . . 1 . . . . . 3 . . . . Locate Traps 3 | . 1 . 2 . . . . . . . . . . . . . . . . . Recall Reinforcements 1 | . 1 . . . . . . . . . . . . . . . . . . . Fabricator Hacks . | . . . . . . . . . . . . . . . . . . . . . Repair Station Hacks 11 | . . . . . 2 . 4 . . 2 . . . 3 . . . . . . Scan Component 6 | . . . . . 1 . 2 . . 1 . . . 2 . . . . . . Repair 5 | . . . . . 1 . 2 . . 1 . . . 1 . . . . . . Recycling Unit Hacks 2 | . 1 . . . 1 . . . . . . . . . . . . . . . Retrieve Components 2 | . 1 . . . 1 . . . . . . . . . . . . . . . Scanalyzer . | . . . . . . . . . . . . . . . . . . . . . Garrison Access Hacks 6 | . . . . . 1 . . 1 . 1 . 1 . 1 . 1 . . . . Unlock Access 6 | . . . . . 1 . . 1 . 1 . 1 . 1 . 1 . . . . Unauthorized Hacks 16 | . 4 . 3 . 1 . . 2 . . . . . 2 . 4 . . . . Terminals 9 | . 2 . 3 . 1 . . 2 . . . . . . . 1 . . . . Botnet 8 | . 2 . 3 . 1 . . 2 . . . . . . . . . . . . Operators 1 | . . . . . . . . . . . . . . . . 1 . . . . Fabricators . | . . . . . . . . . . . . . . . . . . . . . Repair Stations . | . . . . . . . . . . . . . . . . . . . . . Recycling Units 7 | . 2 . . . . . . . . . . . . 2 . 3 . . . . Monitor 1 | . . . . . . . . . . . . . . . . 1 . . . . Reject 2 | . . . . . . . . . . . . . . 1 . 1 . . . . Mask 2 | . . . . . . . . . . . . . . 1 . 1 . . . . Tunnel 2 | . 2 . . . . . . . . . . . . . . . . . . . Scanalyzers . | . . . . . . . . . . . . . . . . . . . . . Garrison Access . | . . . . . . . . . . . . . . . . . . . . . Data Cores Recovered 2 | . . . 1 . 1 . . . . . . . . . . . . . . . Used . | . . . . . . . . . . . . . . . . . . . . . Hacking Detections 52 | . 7 . 11 . 9 . 2 3 . 4 . 1 . 3 . 7 . . 1 4 Full Trace Events 3 | . . . . . 1 . . . . . . . . . . . . . . 2 Feedback Events . | . . . . . . . . . . . . . . . . . . . . . Feedback Blocked . | . . . . . . . . . . . . . . . . . . . . . Robot Schematics Acquired . | . . . . . . . . . . . . . . . . . . . . . Robots Built . | . . . . . . . . . . . . . . . . . . . . . Authchips . | . . . . . . . . . . . . . . . . . . . . . Time . | . . . . . . . . . . . . . . . . . . . . . Total Robot Build Rating . | . . . . . . . . . . . . . . . . . . . . . Part Schematics Acquired . | . . . . . . . . . . . . . . . . . . . . . Parts Built . | . . . . . . . . . . . . . . . . . . . . . Authchips . | . . . . . . . . . . . . . . . . . . . . . Time . | . . . . . . . . . . . . . . . . . . . . . Total Part Build Rating . | . . . . . . . . . . . . . . . . . . . . . Parts Repaired 4 | . . . . . 1 . 2 . . 1 . . . . . . . . . . Time 204 | . . . . . 22 . 88 . . 44 . . . 50 . . . . . . Parts Recycled . | . . . . . . . . . . . . . . . . . . . . . Recycled Matter . | . . . . . . . . . . . . . . . . . . . . . Retrieved Matter . | . . . . . . . . . . . . . . . . . . . . . Retrieved Components 19 | . 10 . . . 9 . . . . . . . . . . . . . . . Parts Scanalyzed . | . . . . . . . . . . . . . . . . . . . . . Part Schematics Acquired . | . . . . . . . . . . . . . . . . . . . . . Parts Damaged . | . . . . . . . . . . . . . . . . . . . . . Bothacking | -11 -10 -10 -9 -9 -8 -8 -8 -7 -7 -6 -6 -6 -6 -5 -5 -4 -4 -3 -2 -1 ------------ Run | Scr Mat Min Mat Min Mat Gar Mat Fac Gar Fac Gar Fac Gar Fac Gar Fac Gar Res Res Acc Used RIF Installer 6 | . . . . . . 1 . . 1 . 1 . 1 . 1 . 1 . . . Coupler Efficiency 1 | . . . . . . . . . 1 . . . . . . . . . . . Threat Obfuscator 1 | . . . . . . . . . . . . . . . . . 1 . . . Signal Jammer 1 | . . . . . . . . . . . 1 . . . . . . . . . Zone Cloak 1 | . . . . . . . . . . . . . . . 1 . . . . . Patrol Navigation 1 | . . . . . . . . . . . . . 1 . . . . . . . Robots Hacked 105 | . . . . . . . 6 1 13 6 6 12 6 11 12 13 1 4 10 4 Non-combat 24 | . . . . . . . 1 . . 2 . 9 . 4 . 5 . 2 1 . Combat 81 | . . . . . . . 5 1 13 4 6 3 6 7 12 8 1 2 9 4 Robot Hacks Applied 108 | . . . . . . . 6 1 13 6 6 14 6 12 12 13 1 4 10 4 no_distress 2 | . . . . . . . . . . . . . . . . 2 . . . . map_earth 1 | . . . . . . . . . . . . . . 1 . . . . . . drop_inventory 6 | . . . . . . . . . . 1 . 2 . 1 . 1 . 1 . . locate_stockpiles 2 | . . . . . . . . . . . . 1 . 1 . . . . . . deconstruct_bot 1 | . . . . . . . . . . . . 1 . . . . . . . . amplify_resonance 3 | . . . . . . . . . 1 1 1 . . . . . . . . . disable_weapons 2 | . . . . . . . . . 1 . . . . . . . . . 1 . reboot_system 3 | . . . . . . . . . . . . . . 2 1 . . . . . overwrite_iff 15 | . . . . . . . 2 . 2 1 2 . . . 4 . . . 1 3 streamctrl_high 6 | . . . . . . . . . 2 1 . . 1 . . . . . 1 1 formatsys_low 11 | . . . . . . . . . . 1 . 7 . 1 . . . 1 1 . formatsys_high 56 | . . . . . . . 4 1 7 1 3 3 5 6 7 10 1 2 6 . Relay Couplers Released 76 | . . . . . . 8 . . 14 . 11 . 12 . 13 . 18 . . . Machine Destruction 76 | . . . . . . 8 . . 14 . 11 . 12 . 13 . 18 . . . Attached 42 | . . . . . . . 4 1 6 2 2 3 3 3 6 4 1 2 3 2 Fabnet Peak Effective % . | . . . . . . . . . . . . . . . . . . . . . Robots Rewired 1 | . . . . . 1 . . . . . . . . . . . . . . . Allies Hacked 2 | . . . . . . . . . . . . . 2 . . . . . . . Hacks Repelled . | . . . . . . . . . . . . . . . . . . . . . Allies | -11 -10 -10 -9 -9 -8 -8 -8 -7 -7 -6 -6 -6 -6 -5 -5 -4 -4 -3 -2 -1 -------- Run | Scr Mat Min Mat Min Mat Gar Mat Fac Gar Fac Gar Fac Gar Fac Gar Fac Gar Res Res Acc Total Allies 95 | . . 6 . . 1 . 6 1 11 4 5 10 6 7 11 10 1 3 9 4 Largest Group 8 | . . 4 4 . 1 . 4 5 6 6 4 7 8 3 4 5 1 4 8 3 Highest-Rated Group 355 | . . 71 71 . 16 . 78 110 142 146 87 151 161 102 148 257 49 179 355 178 Highest-Rated Ally 178 | . . 31 31 . 16 . 26 32 32 32 41 41 41 49 49 137 49 64 69 178 Total Orders 30 | . . . . . . . . . 2 . 4 5 . . 1 3 . 4 2 9 STAY 8 | . . . . . . . . . 1 . 2 . . . 1 1 . 2 1 . ROAM 1 | . . . . . . . . . . . . . . . . . . . . 1 FOLLOW 8 | . . . . . . . . . 1 . 2 1 . . . 1 . 2 1 . AID 3 | . . . . . . . . . . . . 2 . . . 1 . . . . DROP 1 | . . . . . . . . . . . . 1 . . . . . . . . COLLECT 1 | . . . . . . . . . . . . 1 . . . . . . . . EXPLORE 4 | . . . . . . . . . . . . . . . . . . . . 4 RETURN 4 | . . . . . . . . . . . . . . . . . . . . 4 Ally Attacks 453 | . . 15 28 . 3 . 28 4 54 38 21 25 32 23 36 74 6 . 40 26 Total Damage 11644 | . . 232 219 . 34 . 389 107 1269 872 364 600 1032 565 908 3140 113 . 837 963 Kills 78 | . . 4 3 . . . 4 . 14 11 1 5 5 5 3 13 1 . 4 5 Allies Corrupted 2 | . . . . . . . . . . . . . . 1 . . . . 1 . Allies Melted . | . . . . . . . . . . . . . . . . . . . . . Intel | -11 -10 -10 -9 -9 -8 -8 -8 -7 -7 -6 -6 -6 -6 -5 -5 -4 -4 -3 -2 -1 ------- Run | Scr Mat Min Mat Min Mat Gar Mat Fac Gar Fac Gar Fac Gar Fac Gar Fac Gar Res Res Acc Robot Analysis Total 7 | . 3 . 2 . . . . . . 2 . . . . . . . . . . Derelict Logs Recovered 1 | . . . . 1 . . . . . . . . . . . . . . . . Drone Launches 7 | . . . . . . . . . . . . . . . . . . . . 7 Drone Recoveries 6 | . . . . . . . . . . . . . . . . . . . . 6 Exploration | -11 -10 -10 -9 -9 -8 -8 -8 -7 -7 -6 -6 -6 -6 -5 -5 -4 -4 -3 -2 -1 ------------- Run | Scr Mat Min Mat Min Mat Gar Mat Fac Gar Fac Gar Fac Gar Fac Gar Fac Gar Res Res Acc Turns Passed 20906 | 94 1507 1245 2743 823 2039 912 434 538 1041 804 1072 621 1049 718 1041 1582 1115 147 675 706 Spaces Moved 10350 | 51 615 425 1004 369 1060 537 201 328 587 454 562 324 482 366 501 866 505 80 359 674 Core 468 | 1 . . . . . . . . . . . . . . . . . . . 467 Treads 2739 | 50 615 425 1004 251 22 . . . . . . . . . . . . . 165 207 Legs . | . . . . . . . . . . . . . . . . . . . . . Wheels 7143 | . . . . 118 1038 537 201 328 587 454 562 324 482 366 501 866 505 80 194 . Hover . | . . . . . . . . . . . . . . . . . . . . . Flight . | . . . . . . . . . . . . . . . . . . . . . Fastest Speed 50 | 50 160 240 240 145 145 145 145 145 145 145 145 145 160 160 160 160 160 160 152 50 Average Speed 168 | 157 200 274 240 209 153 145 145 145 145 152 147 151 160 163 168 164 162 160 164 81 Slowest Speed 570 | 160 240 320 240 240 570 145 145 145 145 160 160 160 160 175 175 175 175 160 225 170 Overloaded Moves . | . . . . . . . . . . . . . . . . . . . . . Propulsion Burnouts . | . . . . . . . . . . . . . . . . . . . . . Robots Hopped . | . . . . . . . . . . . . . . . . . . . . . Cave-ins Triggered . | . . . . . . . . . . . . . . . . . . . . . Exploration Rate (%) 46 | 4 82 93 89 99 81 60 21 13 63 19 57 9 65 8 64 24 87 2 11 29 Regions Visited 20 Branch Regions 2 Pre-discovered Areas 3 | . 2 . . 1 . . . . . . . . . . . . . . . . Known Exits Taken 7 | . . . . . 1 . . 1 . 1 . 1 . 1 . 1 . . 1 . Unknown Exits Taken 7 | 1 1 1 1 1 . . 1 . . . . . . . . . . 1 . . Scrap Searched 4 | . . 3 . 1 . . . . . . . . . . . . . . . . Spaces Dug 36 | . 2 . 1 . . 12 . 2 2 . . . . . . 4 . . . 13 Terrain Destroyed 613 | . 2 1 37 30 89 23 . 4 9 . 1 24 22 . 25 97 110 . 18 121 Melee 9 | . 2 . 1 . . . . 2 . . . . . . . 4 . . . . Projectile 28 | . . 1 . . 10 . . 2 . . 1 . 1 . . 7 4 . . 2 AOE 575 | . . . 36 30 79 23 . . 9 . . 24 21 . 25 86 106 . 17 119 Terrain Rammed . | . . . . . . . . . . . . . . . . . . . . . Walls Destroyed . | . . . . . . . . . . . . . . . . . . . . . Machines Disabled . | . . . . . . . . . . . . . . . . . . . . . Actions | -11 -10 -10 -9 -9 -8 -8 -8 -7 -7 -6 -6 -6 -6 -5 -5 -4 -4 -3 -2 -1 --------- Run | Scr Mat Min Mat Min Mat Gar Mat Fac Gar Fac Gar Fac Gar Fac Gar Fac Gar Res Res Acc Total 12713 | 62 764 465 1188 397 1289 618 340 367 735 554 703 418 698 473 651 975 701 99 435 781 Wait 491 | . 42 . 15 . 51 2 115 1 27 52 . 17 55 35 30 3 7 2 18 19 Move 10331 | 50 614 424 1003 368 1060 536 200 327 586 453 561 323 481 365 500 865 504 79 358 674 Hop . | . . . . . . . . . . . . . . . . . . . . . Pick Up 239 | 6 19 8 23 5 17 12 3 5 13 7 20 9 13 13 13 13 20 5 8 7 Fast Attach 65 | 6 1 1 4 1 7 3 2 2 2 5 4 1 9 2 3 4 1 1 5 1 Attach 105 | . 1 1 4 2 12 5 4 3 3 3 13 6 5 6 5 5 8 2 5 12 Detach 8 | . . 1 . . 2 . . 2 1 . . . . . . 1 . . 1 . Swap 204 | . 8 6 16 2 20 9 3 7 13 8 8 12 21 7 15 24 9 1 4 11 Drop 232 | . 11 4 31 5 21 4 4 5 15 11 13 13 20 13 10 16 15 4 11 6 Fire 713 | . 61 19 84 13 97 31 7 8 36 14 54 32 43 28 40 33 54 5 21 33 Melee 49 | . 6 . 4 . 1 . . 7 2 . 11 . . . . 7 11 . . . Ram 9 | . . . . . . . . . . . . . . . . . . . . 9 Kick . | . . . . . . . . . . . . . . . . . . . . . Crush 20 | . 1 1 4 1 . . . . . . . 1 . 1 . 1 . . 1 9 Escape Stasis 216 | . . . . . . 16 . . 32 . 16 . 48 . 32 . 72 . . . Rewire 31 | . . . . . 1 . 2 . 5 1 3 4 3 3 3 3 . . 3 . Trap . | . . . . . . . . . . . . . . . . . . . . . Miscellaneous . | . . . . . . . . . . . . . . . . . . . . . Route ------- -11/Scrapyard -10/Materials (discovered 5 exits: *Mat x3 / [*Min x2]) -10/Mines -9/Materials (discovered 7 exits: *Mat x3 / *Min x2 / [*Sto x2]) -9/Mines (discovered 2 exits: *Mat x2) -8/Materials (discovered 3 exits: *Fac x2 / Gar) -8/Garrison (discovered 2 exits: *Mat x2) -8/Materials -7/Factory (discovered 2 exits: Fac / Gar) -7/Garrison (discovered 3 exits: *Fac x3) -6/Factory (discovered 3 exits: [*Low x2] / Gar) -6/Garrison -6/Factory -6/Garrison (discovered 2 exits: *Fac x2) -5/Factory (discovered 2 exits: [*Upp] / Gar) -5/Garrison (discovered 2 exits: *Fac x2) -4/Factory (discovered 3 exits: [*Res x2] / Gar) -4/Garrison (discovered 2 exits: [*Res x2]) -3/Research -2/Research -1/Access (discovered 1 exit: Com) History --------- Turn | Location | Event 25 | -11/Scrapyard | Discovered new exit (range 14) 95 | -11/Scrapyard | Entered Materials 207 | -10/Materials | Discovered new exit (range 13) 329 | -10/Materials | Build established: Mutant 537 | -10/Materials | Discovered new exit (range 3) 753 | -10/Materials | Discovered new exit (range 16) 847 | -10/Materials | Discovered new exit (range 10) 1333 | -10/Materials | Discovered new exit (range 16) 1602 | -10/Materials | Entered Mines 1631 | -10/Mines | Discovered new exit (range 13) 1660 | -10/Mines | Found a damaged Exp. Sensor Array with a note attached 1665 | -10/Mines | Found Prototype Device 1666 | -10/Mines | Identified Exp. Sensor Array 1781 | -10/Mines | Assembled infested the area 1831 | -10/Mines | Core integrity fell below 50% 2137 | -10/Mines | Met a Derelict testing a Signal Generator 2529 | -10/Mines | Assisted by bots powering up and referring to "LRC-V3" 2847 | -10/Mines | Entered Materials 2847 | -9/Materials | Accompanied by 4 allies 2847 | -9/Materials | Evolved 2 slots: Propulsion x1, Utility x1 3053 | -9/Materials | Discovered new exit (range 13) 3484 | -9/Materials | Build established: Scavenger-Mutant 3531 | -9/Materials | Discovered new exit (range 11) 3741 | -9/Materials | Discovered new exit (range 3) 3813 | -9/Materials | Discovered new exit (range 7) 4168 | -9/Materials | Discovered new exit (range 3) 4338 | -9/Materials | Discovered new exit (range 13) 4871 | -9/Materials | Discovered new exit (range 14) 5590 | -9/Materials | Entered Mines 5950 | -9/Mines | Discovered new exit (range 8) 6210 | -9/Mines | Met a Derelict shopkeep closing up shop 6315 | -9/Mines | Build established: Mutant 6330 | -9/Mines | Discovered new exit (range 14) 6413 | -9/Mines | Entered Materials 6413 | -8/Materials | Evolved 2 slots: Utility x2 6833 | -8/Materials | Discovered new exit (range 13) 7115 | -8/Materials | Discovered new exit (range 15) 7336 | -8/Materials | Repaired Arm. Huge Wheel 8425 | -8/Materials | Core integrity fell below 50% 8452 | -8/Materials | Identified exit to Garrison 8452 | -8/Materials | Entered Garrison 8464 | -8/Garrison | Lost 4 parts (1n2u1w) 8564 | -8/Garrison | Triggered checkpoint 8577 | -8/Garrison | Garrison Relay disabled 8772 | -8/Garrison | Triggered checkpoint 8773 | -8/Garrison | Triggered checkpoint 8782 | -8/Garrison | Core integrity fell below 20% 8807 | -8/Garrison | Destroyed 7 combat bots 8936 | -8/Garrison | Triggered checkpoint 8956 | -8/Garrison | Garrison Relay disabled 9004 | -8/Garrison | Discovered new exit (range 12) 9088 | -8/Garrison | Triggered checkpoint 9088 | -8/Garrison | Triggered checkpoint 9155 | -8/Garrison | Discovered new exit (range 8) 9183 | -8/Garrison | Installed Relay Interface Framework 9364 | -8/Garrison | Entered Materials 9419 | -8/Materials | Repaired Lyr. Light Armor Plating 9464 | -8/Materials | Repaired Arm. Huge Wheel 9498 | -8/Materials | Build established: Bothacker-Mutant 9754 | -8/Materials | Discovered new exit (range 9) 9798 | -8/Materials | Entered Factory 9798 | -7/Factory | Accompanied by 4 allies 9798 | -7/Factory | Evolved 2 slots: Utility x2 10203 | -7/Factory | Discovered new exit (range 7) 10292 | -7/Factory | Identified exit to Garrison 10336 | -7/Factory | Entered Garrison 10336 | -7/Garrison | Accompanied by 5 allies 10396 | -7/Garrison | Triggered checkpoint 10495 | -7/Garrison | Garrison Relay disabled 10760 | -7/Garrison | Triggered checkpoint 10760 | -7/Garrison | Garrison Relay disabled 10800 | -7/Garrison | Triggered checkpoint 10808 | -7/Garrison | Discovered new exit (range 14) 10930 | -7/Garrison | Triggered checkpoint 10955 | -7/Garrison | Triggered checkpoint 11034 | -7/Garrison | Triggered checkpoint 11051 | -7/Garrison | Garrison Relay disabled 11066 | -7/Garrison | Triggered checkpoint 11104 | -7/Garrison | Discovered new exit (range 12) 11294 | -7/Garrison | Discovered new exit (range 10) 11314 | -7/Garrison | Expanded RIF knowledge: Coupler Efficiency 11377 | -7/Garrison | Entered Factory 11377 | -6/Factory | Accompanied by 5 allies 11377 | -6/Factory | Evolved 2 slots: Utility x2 11757 | -6/Factory | Repaired Arm. Huge Wheel 12084 | -6/Factory | Discovered new exit (range 6) 12094 | -6/Factory | Discovered new exit (range 16) 12098 | -6/Factory | Garrison activated, responded to threat 12173 | -6/Factory | Identified exit to Garrison 12181 | -6/Factory | Entered Garrison 12181 | -6/Garrison | Accompanied by 2 allies 12189 | -6/Garrison | Expanded RIF knowledge: Signal Jamming 12279 | -6/Garrison | Spotted B-75 Beast 12280 | -6/Garrison | Triggered checkpoint 12291 | -6/Garrison | Triggered checkpoint 12302 | -6/Garrison | Triggered checkpoint 12383 | -6/Garrison | Destroyed B-75 Beast 12432 | -6/Garrison | Lost 8 parts (1p5u2w) 12516 | -6/Garrison | Triggered checkpoint 12551 | -6/Garrison | Garrison Relay disabled 12694 | -6/Garrison | Triggered checkpoint 12722 | -6/Garrison | Garrison Relay disabled 12796 | -6/Garrison | Discovered new exit (range 8) 12894 | -6/Garrison | Triggered checkpoint 12959 | -6/Garrison | Garrison Relay disabled 13253 | -6/Garrison | Entered Factory 13253 | -6/Factory | Accompanied by 1 ally 13539 | -6/Factory | Identified exit to Garrison 13874 | -6/Factory | Entered Garrison 13874 | -6/Garrison | Accompanied by 7 allies 13910 | -6/Garrison | Triggered checkpoint 13936 | -6/Garrison | Triggered checkpoint 13994 | -6/Garrison | Garrison Relay disabled 14154 | -6/Garrison | Spotted B-75 Beast 14184 | -6/Garrison | Destroyed B-75 Beast 14326 | -6/Garrison | Triggered checkpoint 14362 | -6/Garrison | Garrison Relay disabled 14403 | -6/Garrison | Discovered new exit (range 14) 14495 | -6/Garrison | Triggered checkpoint 14532 | -6/Garrison | Triggered checkpoint 14622 | -6/Garrison | Discovered new exit (range 13) 14638 | -6/Garrison | Triggered checkpoint 14653 | -6/Garrison | Garrison Relay disabled 14769 | -6/Garrison | Expanded RIF knowledge: Patrol Navigation 14923 | -6/Garrison | Entered Factory 14923 | -5/Factory | Evolved 2 slots: Utility x2 15003 | -5/Factory | Discovered new exit (range 20) 15061 | -5/Factory | Build established: Botlord-Mutant 15267 | -5/Factory | Found Scatter Rocket Array 15269 | -5/Factory | Found Scatter Rocket Array 15378 | -5/Factory | Identified exit to Garrison 15629 | -5/Factory | Build established: Bothacker-Mutant 15641 | -5/Factory | Entered Garrison 15641 | -5/Garrison | Accompanied by 2 allies 15704 | -5/Garrison | Triggered checkpoint 15726 | -5/Garrison | Garrison Relay disabled 15785 | -5/Garrison | Triggered checkpoint 15798 | -5/Garrison | Triggered checkpoint 15798 | -5/Garrison | Spotted B-75 Beast 15862 | -5/Garrison | Destroyed 7 combat bots 15979 | -5/Garrison | Destroyed B-75 Beast 16099 | -5/Garrison | Discovered new exit (range 10) 16116 | -5/Garrison | Triggered checkpoint 16140 | -5/Garrison | Garrison Relay disabled 16199 | -5/Garrison | Expanded RIF knowledge: Zone Cloak 16265 | -5/Garrison | Triggered checkpoint 16500 | -5/Garrison | Discovered new exit (range 10) 16501 | -5/Garrison | Build established: Botlord-Mutant 16568 | -5/Garrison | Triggered checkpoint 16591 | -5/Garrison | Garrison Relay disabled 16682 | -5/Garrison | Entered Factory 16682 | -4/Factory | Accompanied by 3 allies 16682 | -4/Factory | Evolved 2 slots: Propulsion x1, Utility x1 16798 | -4/Factory | Identified exit to Garrison 16886 | -4/Factory | Discovered new exit (range 10) 17432 | -4/Factory | First assault squad dispatched 17463 | -4/Factory | Discovered new exit (range 15) 17987 | -4/Factory | Spotted B-86 Titan 18264 | -4/Factory | Entered Garrison 18264 | -4/Garrison | Accompanied by 1 ally 18292 | -4/Garrison | Triggered checkpoint 18486 | -4/Garrison | Triggered checkpoint 18495 | -4/Garrison | Triggered checkpoint 18496 | -4/Garrison | Spotted B-86 Titan 18503 | -4/Garrison | Triggered checkpoint 18534 | -4/Garrison | Destroyed B-86 Titan 18554 | -4/Garrison | Lost 3 parts (1n2u) 18555 | -4/Garrison | Destroyed 9 combat bots 18604 | -4/Garrison | Triggered checkpoint 18791 | -4/Garrison | Discovered new exit (range 9) 18814 | -4/Garrison | Expanded RIF knowledge: Threat Obfuscation 18840 | -4/Garrison | Triggered checkpoint 18872 | -4/Garrison | Garrison Relay disabled 19038 | -4/Garrison | Triggered checkpoint 19056 | -4/Garrison | Garrison Relay disabled 19248 | -4/Garrison | Triggered checkpoint 19270 | -4/Garrison | Garrison Relay disabled 19363 | -4/Garrison | Discovered new exit (range 11) 19379 | -4/Garrison | Entered Research 19379 | -3/Research | Accompanied by 1 ally 19379 | -3/Research | Evolved 2 slots: Utility x2 19399 | -3/Research | Discovered new exit (range 12) 19526 | -3/Research | Entered another Research area 19526 | -2/Research | Accompanied by 4 allies 19526 | -2/Research | Evolved 2 slots: Utility x2 20157 | -2/Research | Discovered new exit (range 19) 20193 | -2/Research | Identified exit to Access 20201 | -2/Research | Entered Access 20201 | -1/Access | Accompanied by 3 allies 20201 | -1/Access | Evolved 2 slots: Utility x2 20451 | -1/Access | First assault squad dispatched 20478 | -1/Access | Destroyed 10 combat bots 20565 | -1/Access | Spotted B-99 Colossus 20605 | -1/Access | Lost 3 parts (1p2u) 20689 | -1/Access | Energy Cycler disabled 20720 | -1/Access | Lost 7 parts (1p3n1u2w) 20772 | -1/Access | System corruption reached 10% 20800 | -1/Access | Identified exit to Command 20824 | -1/Access | Lost 3 parts (2n1u) 20848 | -1/Access | Core integrity fell below 50% 20895 | -1/Access | Core integrity fell below 20% 20907 | -1/Access | Destroyed by H-88 Terminator with Heavy Machine Gun Last Messages --------------- 20895_ Slammed into G-73 Enforcer. 20896_ R-10 Processor collects Terrain Scan Processor. 20896_ Slammed into R-10 Processor. 20897_ Slammed into A-15 Conveyor. 20898_ Penetrated by Slug. 20898_ Relay Coupler [Sentry] destroyed. 20898_ Penetrated by Slug. 20898_ ALERT: Suspicious intruders detected, dispatching Cutter reinforcements to area. 20901_ Penetrated by Slug. 20901_ Slammed into H-88 Terminator. 20901_ Centrium Leg destroyed. 20901_ Slug penetrates Wall. 20902_ Slammed into H-88 Terminator. 20904_ Destabilizing: System interference. 20904_ Adv. Signal Interpreter temporarily disabled. 20904_ Adv. Terrain Scan Processor temporarily disabled. 20904_ Penetrated by Slug. 20906_ System corrupted: Matter fused (-6). 20907_ Penetrated by Slug. Map ----- +----------------------------------------------------+ | ????????##### + #?????????????????????? | | ????????+ # #?????????????????????? | | ????????##### ##########?????????????????????? | | ????????????# #??????????????????????????????? | | ????????????# #??????????????????????????????? | | ????????????# #??????????????????????????????? | | ???########## #??????????????????????????????? | | ?? #??????????????????????????????? | | ?? #??????????????????????????????? | | ?? % #??????????????????????????????? | | ???#+######## #??????????????????????????????? | | ???# ?# #??##???###????????????????????? | | ???# # #??# ?? #????????????????????? | | ???# # #??# ?????????????????????? | | ???# + #??# "T ?????????????????????? | | ???# # #??# "" ?????????????????????? | | ???# # #??? ?????????????????????? | | ???# " #??? ?????????????????????? | | ???# ###%###???# #?????????????????????? | | ???# ?????# #?????# #?????????????????????? | | ???#??##??????#%#?????# #?????????????????????? | | ??????????????#=#?????# u#?????????????????????? | | ??????????????#*#?????# #?????????????????????? | | ??????????????#%#?????#g #?????????????????????? | | ??????????????#%#?????# #?????????????????????? | | ?????????######/####### @A#?????????????????????? | | ?????????# %% ] # #?????????????????????? | | ?????????# # #?????????????????????? | | ?????????# # #?????????????????????? | | ?????????# # #?????????????????????? | | ?????????# #% #?????????????????????? | | ?????????# %phh +?????????????????????? | | ?????????# %# #?????????????????????? | | ?????????# ]] # #?????????????????????? | | ?????????# ]] #u #?????????????????????? | | ?????????# ] #u #?????????????????????? | | ?????????# # #?????????????????????? | | ?????????# # #?????????????????????? | | ?????????############## #?????????????????????? | | ??????????????????????# #?????????????????????? | | ??????????????????????+ #?????????????????????? | | ??????????????????????# #?????????????????????? | | ??????????????????????# #?????????????????????? | | ??????????????????????? #?????????????????????? | | ??????????????????????? #?????????????????????? | | ??????????????????????? ???????????????????????? | | ?????????????????????????????????????????????????? | | ?????????????????????????????????????????????????? | | ?????????????????????????????????????????????????? | | ?????????????????????????????????????????????????? | +----------------------------------------------------+ Best States ------------- Heat Dissipation 90 Energy Generation 25 Energy Capacity 665 Matter Stores 463 Matter Capacity 700 Sight Range 16 Robot Scan Range 20 Terrain Scan Range 20 Terrain Scan Density 210 Armor Coverage 1200 Resistance: KI 20 Resistance: TH 15 Propulsion Shielding 66 Evasion (%) 50 Targeting Accuracy 5 Target Analysis 8 Recoil Reduction 4 Kinecelleration 30 Offensive Hacking 24 Relay Coupler Types 7 Relay Coupler Value 162 Item Schematics ----------------- None Robot Schematics ------------------ None Fabricated ------------ Nothing Alien Tech Used ----------------- None Achievements -------------- None Challenges ------------ None Game ------ Seed AssemblyDeliveryInverter Manual? 0 Play Time 04:48:11 Cumulative 110.0 hours Start 2022.04.22 @ 22:40:43 End 2022.04.25 @ 11:06:43 Sessions 9 Manual Loads 0 Difficulty Rogue Special Mode None Game No. 58 Rogue 58 Adventurer 0 Explorer 0 Win Type - Total 6 Types 6/0/0/0/0/0/0/0/0 Lore% 48 Gallery% 61 Achievement% 54 Wizard Run 0 Options --------- ASCII 0 Keyboard 0 Movement Arrows Keybinds 0 Fullscreen 2 Font 24/Smallcaps Map View 76x50 Tactical HUD 1 Map Filters NONE Filters NONE Steam 1 RUN: de2b16fb-8037-46bd-b747-0a84cf97005e